Cogmind - Beta 13 @@@ ROGUE MODE // 2024.07.03 @ 21:39:08 // Winter2022/Polymind Player: JackZewap Result: Destroyed by 0U-FV9(R) with Subdweller Machine Gun Performance ------------- Evolutions (0) 0 Regions Visited (2) 400 Robots Destroyed (0) 0 Value Destroyed (0) 0 Prototype IDs (0) 0 Alien Tech Used (0) 0 Bonus (760) 760 TOTAL SCORE: 1040 Bonus ------- Polymind Skill 760 Cogmind --------- Core Integrity 0/250 Matter 0/0 Energy 23/100 System Corruption 2% Temperature Cool (0) Movement Core (50) Location -10/Subcaves Parts ------- > --- POWER (1) -------- (None) > --- PROPULSION (1) --- (None) > --- UTILITY (4) ------ (None) > --- WEAPON (1) ------- (None) > --- INVENTORY (0) ---- (None) Peak State ------------ > --- POWER ------------ Subdweller Power Source > --- PROPULSION ------- Subdweller Monowheel > --- UTILITY ---------- Disposable Heat Sink Subdweller Optics Scrap Shield > --- WEAPON ----------- Subdweller Laser > --- INVENTORY -------- Scrap Shield Fragment [Rating: 14] Favorites ----------- Power Light Ion Engine Engine Light Ion Engine Propulsion Compact Wheel Wheel Compact Wheel Utility Improved Terrain Scanner Device Improved Terrain Scanner Storage Small Storage Unit Protection Scrap Shield Weapon Mining Laser Energy Gun Subdweller Laser Special Weapon Mining Laser Build | -11 -10 -10 ------- Run | Yrd Mat Sub Slots Evolved . | . . . Power . | . . . Propulsion . | . . . Utility . | . . . Weapon . | . . . Parts Attached . | . . . Power . | . . . Engine . | . . . Core . | . . . Reactor . | . . . Propulsion . | . . . Treads . | . . . Leg . | . . . Wheel . | . . . Hover . | . . . Flight . | . . . Utility . | . . . Device . | . . . Storage . | . . . Processor . | . . . Hackware . | . . . Protection . | . . . Artifact . | . . . Weapon . | . . . Energy Gun . | . . . Energy Cannon . | . . . Ballistic Gun . | . . . Ballistic Cannon . | . . . Launcher . | . . . Special Weapon . | . . . Impact Weapon . | . . . Slashing Weapon . | . . . Piercing Weapon . | . . . Special Melee Weapon . | . . . Unidentified Prototypes . | . . . Parts Lost 5 | . . 5 Power . | . . . Propulsion 2 | . . 2 Utility 1 | . . 1 Weapon 2 | . . 2 Highest Loss Streak 3 | . . 3 To Critical Strikes . | . . . Average Slot Usage (%) 90 | . 100 79 Engine 16 | . 19 14 Wheel 30 | . 38 22 Device 26 | . 23 29 Storage 8 | . 15 . Special Weapon 5 | . 4 8 Naked Turns 10 | . 2 8 Heaviest Build 30 | 9 9 30 Greatest Support 32 | 32 32 20 Greatest Overweight (x) 1 | . . 1 Average Overweight (x) . | . . . Largest Inventory Capacity 4 | 4 4 2 Average Capacity 1 | 1 2 . Most Carried 4 | . 4 1 Average Carried 1 | . 2 . Final Capacity 4 | 4 . . Final Carried . | . . . Class Distribution -------------------- 48% | Tunneler 40% | Recycler 7% | Subdweller 3% | Cogmind Dominant Class ---------------- Recycler | -10/Materials Tunneler | -10/Subcaves Resources | -11 -10 -10 ----------- Run | Yrd Mat Sub Matter Collected . | . . . Remotely . | . . . Salvage Created . | . . . Parts . | . . . Haulers Intercepted . | . . . Recyclers Shooed . | . . . Parts Field Recycled . | . . . Retrieved Matter . | . . . Parts Self-Destructed 4 | . . 4 Prevented . | . . . Kills | -11 -10 -10 ------- Run | Yrd Mat Sub Combat Hostiles Destroyed . | . . . Classes Destroyed . | . . . Best Kill Streak . | . . . Combat Bots Only . | . . . Max Kills in Single Turn . | . . . Gunslinging . | . . . Exploded . | . . . Melee . | . . . Uniques/NPCs Destroyed . | . . . Combat | -11 -10 -10 -------- Run | Yrd Mat Sub Hostile Shots Fired 51 | . . 51 Missed 15 | . . 15 Damage Taken 754 | . . 754 Core 254 | . . 254 Absorbed by Shields . | . . . Core Remaining (%) 100 | 100 . . Volleys Fired 13 | . . 13 Largest 1 | . . 1 Hottest 100 | . . 100 Shots Fired 13 | . . 13 Gun 10 | . . 10 Cannon . | . . . Launcher . | . . . Special 3 | . . 3 Kinetic . | . . . Thermal 13 | . . 13 Explosive . | . . . Electromagnetic . | . . . Robot Hit Streak 8 | . . 8 Robot Miss Streak 1 | . . 1 Penetration Max . | . . . Secondary Targets . | . . . Shots Hit Robots 9 | . . 9 Core Hits 2 | . . 2 Critical Kills . | . . . Critical Parts Destroyed . | . . . Critical Strikes . | . . . Melee Attacks . | . . . Impact . | . . . Slashing . | . . . Piercing . | . . . Sneak Attacks . | . . . Combat Hostiles . | . . . Follow-up Attacks . | . . . Damage Inflicted 200 | . . 200 Guns 194 | . . 194 Cannons . | . . . Explosions . | . . . Melee . | . . . Ramming 6 | . . 6 Kinetic . | . . . Thermal 194 | . . 194 Explosive . | . . . Electromagnetic . | . . . Impact . | . . . Slashing . | . . . Piercing . | . . . Highest Corruption 2 | . . 2 Average Corruption 2 | . . 2 Corruption Purged . | . . . Corruption Blocked . | . . . Overload Shots . | . . . Overflow Damage . | . . . Projectiles . | . . . Explosions . | . . . Melee . | . . . Knockbacks . | . . . Impact . | . . . Kinetic . | . . . Secondary . | . . . Self-Inflicted Damage 5 | . . 5 Shots . | . . . Rammed 2 | . . 2 Targets Rammed 2 | . . 2 Kicked . | . . . Crushed . | . . . Highest Temperature 126 | . . 126 Average Temperature 60 | . . 60 Received Heat Transfer 30 | . . 30 Siege Activations . | . . . Robots Corrupted . | . . . Combat Hostiles . | . . . Parts Fried . | . . . Impact Corruptions . | . . . Robots Melted . | . . . Combat Hostiles . | . . . Parts Melted . | . . . Heat Transferred 225 | . . 225 Parts Sabotaged . | . . . Parts Stolen . | . . . Parts Stripped . | . . . Power Chain Reactions . | . . . Alert | -11 -10 -10 ------- Run | Yrd Mat Sub Peak Influence . | . . . Initial . | . . . Average . | . . . Maximum Alert Level . | . . . Low Security (%) 100 | 100 100 . Level 1 . | . . . Level 2 . | . . . Level 3 . | . . . Level 4 . | . . . Level 5 . | . . . High Security . | . . . Max Security . | . . . Squads Dispatched . | . . . Investigation . | . . . Extermination . | . . . Reinforcement . | . . . Assault . | . . . Garrison . | . . . Intercept . | . . . Searches Triggered . | . . . Construction Impeded . | . . . Haulers Reinforced . | . . . Active Scanning Responses . | . . . Cargo Convoy Interrupts . | . . . Stealth | -11 -10 -10 --------- Run | Yrd Mat Sub Distress Signals . | . . . Communications Jammed . | . . . Distress Signals . | . . . Times Spotted 8 | . . 8 Peak Tracking Total 4 | . . 4 Tactical Retreats . | . . . Traps | -11 -10 -10 ------- Run | Yrd Mat Sub Traps Triggered . | . . . Indirectly . | . . . Trap Hack Attempts . | . . . Triggered . | . . . Disarmed . | . . . Reprogrammed . | . . . Reused . | . . . Traps Extracted . | . . . Installed . | . . . Triggered . | . . . Machines | -11 -10 -10 ---------- Run | Yrd Mat Sub Machines Disabled . | . . . Max in Single Turn . | . . . Machines Repaired . | . . . Machines Dismantled . | . . . Machines Sabotaged . | . . . Overloaded Fab Kills . | . . . Hacking | -11 -10 -10 --------- Run | Yrd Mat Sub Machines Accessed . | . . . Terminals . | . . . Fabricators . | . . . Repair Stations . | . . . Recycling Units . | . . . Scanalyzers . | . . . Garrison Access . | . . . Total Hacks . | . . . Successful . | . . . Failed . | . . . Catastrophic . | . . . Database Lockouts . | . . . Manual . | . . . Terminals . | . . . Fabricators . | . . . Repair Stations . | . . . Recycling Units . | . . . Scanalyzers . | . . . Garrison Access . | . . . Terminal Hacks . | . . . Fabricator Hacks . | . . . Repair Station Hacks . | . . . Recycling Unit Hacks . | . . . Scanalyzer . | . . . Garrison Access Hacks . | . . . Unauthorized Hacks . | . . . Terminals . | . . . Fabricators . | . . . Repair Stations . | . . . Recycling Units . | . . . Scanalyzers . | . . . Garrison Access . | . . . Data Cores Recovered . | . . . Used . | . . . Hacking Detections . | . . . Full Trace Events . | . . . Feedback Events . | . . . Feedback Blocked . | . . . Robot Schematics Acquired . | . . . Robots Built . | . . . Authchips . | . . . Time . | . . . Total Robot Build Rating . | . . . Part Schematics Acquired . | . . . Parts Built . | . . . Authchips . | . . . Time . | . . . Total Part Build Rating . | . . . Parts Repaired . | . . . Time . | . . . Parts Recycled . | . . . Recycled Matter . | . . . Retrieved Matter . | . . . Retrieved Components . | . . . Parts Scanalyzed . | . . . Part Schematics Acquired . | . . . Parts Damaged . | . . . Bothacking | -11 -10 -10 ------------ Run | Yrd Mat Sub Used RIF Installer . | . . . Robots Hacked . | . . . Non-combat . | . . . Combat . | . . . Robot Hacks Applied . | . . . Relay Couplers Released . | . . . Fabnet Peak Effective % . | . . . Robots Rewired . | . . . Allies Hacked . | . . . Hacks Repelled . | . . . Allies | -11 -10 -10 -------- Run | Yrd Mat Sub Total Allies . | . . . Largest Group . | . . . Highest-Rated Group . | . . . Highest-Rated Ally . | . . . Total Orders . | . . . Ally Attacks . | . . . Total Damage . | . . . Kills . | . . . Allies Corrupted . | . . . Allies Melted . | . . . Intel | -11 -10 -10 ------- Run | Yrd Mat Sub Robot Analysis Total 3 | 1 1 1 Derelict Logs Recovered . | . . . Drone Launches . | . . . Drone Recoveries . | . . . Exploration | -11 -10 -10 ------------- Run | Yrd Mat Sub Turns Passed 310 | 12 164 134 Spaces Moved 275 | 18 143 114 Core 36 | 12 2 22 Treads . | . . . Legs . | . . . Wheels 239 | 6 141 92 Hover . | . . . Flight . | . . . Fastest Speed 50 | 50 50 50 Average Speed 88 | 66 95 83 Slowest Speed 120 | 100 100 120 Overloaded Moves . | . . . Propulsion Burnouts . | . . . Robots Hopped . | . . . Cave-ins Triggered . | . . . Exploration Rate (%) 15 | 3 31 12 Regions Visited 2 Branch Regions 1 Pre-discovered Areas . | . . . Known Exits Taken . | . . . Unknown Exits Taken 2 | 1 1 . Scrap Searched . | . . . Spaces Dug . | . . . Terrain Destroyed . | . . . Melee . | . . . Projectile . | . . . AOE . | . . . Terrain Rammed 1 | . . 1 Walls Destroyed . | . . . Machines Disabled . | . . . Actions | -11 -10 -10 --------- Run | Yrd Mat Sub Total 320 | 17 169 134 Wait 4 | . . 4 Move 273 | 17 142 114 Hop . | . . . Pick Up 4 | . 4 . Fast Attach . | . . . Attach . | . . . Detach . | . . . Swap . | . . . Drop . | . . . Fire 13 | . . 13 Melee . | . . . Ram 3 | . . 3 Kick . | . . . Crush . | . . . Escape Stasis . | . . . Rewire . | . . . Trap . | . . . Miscellaneous 23 | . 23 . Route ------- -11/Scrapyard -10/Materials (discovered 3 exits: [*Mat] / [*Min] / [*Sub]) -10/Subcaves History --------- Turn | Location | Event 2 | -11/Scrapyard | Discovered new exit (range 16) 13 | -11/Scrapyard | Entered Materials 90 | -10/Materials | Discovered new exit (range 14) 124 | -10/Materials | Discovered new exit (range 11) 154 | -10/Materials | Discovered new exit (range 3) 177 | -10/Materials | Entered Subcaves 240 | -10/Subcaves | Disturbed a concealed Subdweller 256 | -10/Subcaves | A swath of the cavern ceiling suddenly collapsed 285 | -10/Subcaves | Core integrity fell below 50% 291 | -10/Subcaves | Lost 3 parts (2n1w) 310 | -10/Subcaves | Core integrity fell below 20% 311 | -10/Subcaves | Destroyed by 0U-FV9(R) with Subdweller Machine Gun Last Messages --------------- GOAL=ESCAPE 00246_ Mining Laser destroyed. 00250_ Wheel destroyed. A swath of the cavern ceiling suddenly collapses. 00260_ Wheel destroyed. 00262_ Slammed into Earth. 00262_ Destabilizing: Core damaged (-7). 00262_ Destabilizing: System corrupted (+2). 00280_ Released control of T-07 Excavator. 00282_ T-07 Excavator reactivates. 00285_ Took control of 8X-6AK(R). 00285_ Extracted analysis data for Subdweller. 00293_ T-07 Excavator destroyed. 00301_ Scrap Shield destroyed. 00302_ Seismic Detector fries itself beyond repair. 00303_ L5-53M(R) destroyed. 00307_ Sub. Laser destroyed. 00308_ Released control of 8X-6AK(R). 00308_ Slammed into 3Q-8WX(R). 00309_ 8X-6AK(R) reactivates. Map ----- +----------------------------------------------------+ | ?????????????????????????????????????????????????? | | ?????????????????????????????????????????????????? | | ?????????????????????????????????????????????????? | | ?????????????????????????????????????????????????? | | ?????????????????????????????????????????????????? | | ?????????????????????????????????????????????????? | | ?????????????????????????????????????????????????? | | ????????????? ???????????????????????????????????? | | ?????????????????????????????????????????????????? | | ?????????????????????????????????????????????????? | | ???????????? ??????????? ???????????????????????? | | ???????????????????????# ???????????????????????? | | ???????????????????????# ???????????????????????? | | ? ??????????????????# ???????????????????????? | | ## ??????###????????? ???????????????????????? | | # ?????## "######?# ???????????????????????? | | ??#### "" "" ### ####???????????????????? | | ### " "" #???????????????????? | | "" "" #? ????????????????????? | | "" "" ### ????????????????????? | | ?# ?#" "" ## #????????????????????? | | ## #??# ""## "#???????????#????????? | | #??# " ### "##???????????????????? | | ##?#" ## " ## "# ####????????????????? | | ### ### """## "% #????????????????? | | # #?# ## @R #????????#???????? | | ## ## #### ### R% # ####?????????????? | | ?# ### ### #?##"%## ## #####?????????? | | ?# ###### # ##?##"R # # "????????? | | ## ##?## ######??# #??????????????? | | # #?## ##?####??## # #??????????????? | | # #?# #?# ##?## #??????????????? | | # #####?## ### ##### #??????????????? | | # ##?????## ### ####" #### #????????????? | | # #??????# ## #"" #??# "#??#?????????? | | #?????### ##?# """ ##??? "#????????????? | | ##????# #??# ##???? "????????????? | | # #????# #???# #### ####?"#???#????????? | | ## ####### ##### ### ##?#????????????? | | ####### # ## # # ## ?????? | | ??????# ###& ## # ?????? | | ?##???# ?? ""## ## ## """# # #?????? | | ??????#??""$$"# ###### ### ###"## # #??????? | | ????????#"$$"## #????####?#####??##??#???????????? | | ????#???##"$## #?????????????????????#??????????? | | ?????????###? ##????????????????????????????????? | | ???????????? ?????#????#???????#???????????????? | | ???????????####??????###?????#?#?????????????????? | | ????#????????????????????????????????????????????? | | ???#?????????????????????????????????????????????? | +----------------------------------------------------+ Best States ------------- Heat Dissipation 25 Coolant Potential 50 Energy Generation 20 Energy Capacity 150 Matter Stores 100 Matter Capacity 100 Sight Range 19 Terrain Scan Range 16 Terrain Scan Density 10 Armor Coverage 800 Evasion (%) 44 Item Schematics ----------------- None Robot Schematics ------------------ None Fabricated ------------ Nothing Alien Tech Used ----------------- None Achievements -------------- None Challenges ------------ None Polymind | -11 -10 -10 ---------- Run | Yrd Mat Sub Hosts 3 | 1 1 1 Combat Hostiles 1 | . . 1 Allies . | . . . Unique Host Classes 3 | 1 1 1 Average Host Suspicion 49 | . 29 76 Unsuspicious Activity 235 | 2 117 116 Returns to Shadow . | . . . Fuzzy Dispatches . | . . . Protomatter Created 42 | . . 42 Used 43 | 5 5 33 Decayed 4 | . . 4 Highest Spend 33 | 5 5 33 Game ------ Seed BlastVisualSubcomponent Manual? 0 Play Time 00:03:52 Cumulative 114.3 hours Start 2024.07.03 @ 21:36:40 End 2024.07.03 @ 21:39:08 Sessions 1 Manual Loads 0 Difficulty Rogue Special Mode Winter2022/Polymind Game No. 136 Rogue 130 Adventurer 6 Explorer 0 Win Type - Total 1 Types 1/0/0/0/0/0/0/0/0 Lore% 38 Gallery% 61 Achievement% 44 Wizard Run 0 Options --------- Layout 0 ASCII 0 Keyboard 1 Movement Numpad Keybinds 0 Fullscreen 0 Font 14/Smallcaps Map View 76x50 Zoom Use 0% Tactical HUD 1 Map Filters NONE Filters NONE Steam 1 RUN: 157850e1-d072-413d-9634-8fa627860c98